[Event "7th Ali Ipek Memorial 2019"]
[Site "Ankara"]
[Date "2019.03.09"]
[Round "4.12"]
[White "Dikilitas, Beren"]
[Black "Kayaman, Metin"]
[Result "1-0"]
[ECO "B56"]
[WhiteElo "1313"]
[BlackElo "1667"]
[Annotator "NA"]
[PlyCount "111"]
[EventDate "2019.03.06"]
[EventType "swiss"]
[EventCountry "TUR"]
[SourceTitle "playchess.com"]
[Source "ChessBase"]
[SourceQuality "1"]
[TimeControl "5400+30"]

1. e4 {[%emt 0:00:30]} c5 {[%emt 0:00:30]} 2. Nf3 {[%emt 0:00:30]} Nc6 {[%emt 0:00:30]} 3. d4 {[%emt 0:00:00]} cxd4 {[%emt 0:00:00]} 4. Nxd4 {[%emt 0:00:00]} Nf6 {[%emt 0:01:00]} 5. Nc3 {[%emt 0:00:30]} d6 {[%emt 0:00:00]} 6. Be3 {[%emt 0:00:30]} e5 {[%emt 0:02:00]} 7. Nb3 {[%emt 0:00:30]} Be7 {[%emt 0:00:30]} 8. f3 {[%emt 0:00:30]} Be6 {[%emt 0:03:30]} 9. Qd2 {[%emt 0:01:30]} a6 {[%emt 0:02:30]} 10. Nd5 {[%emt 0:03:30]} Bxd5 {[%emt 0:05:30]} 11. exd5 {[%emt 0:01:30]} Nb8 {[%emt 0:00:30]} 12. O-O-O {[%emt 0:03:30]} Nbd7 {[%emt 0:01:30]} 13. g4 {[%emt 0:02:30]} Nb6 {[%emt 0:05:30]} 14. Qa5 {[%emt 0:08:30]} Nfd7 {[%emt 0:02:30]} 15. Kb1 {[%emt 0:04:30]} Rc8 {[%emt 0:02:30]} 16. Bf2 {[%emt 0:08:30]} Qc7 {[%emt 0:02:30]} 17. Bd3 {[%emt 0:10:30]} Nc4 {[%emt 0:05:30]} 18. Qxc7 {[%emt 0:00:30]} Rxc7 {[%emt 0:00:30]} 19. Bxc4 {[%emt 0:02:30]} Rxc4 {[%emt 0:00:30]} 20. Nd2 {[%emt 0:01:30]} Rc7 {[%emt 0:01:30]} 21. h4 {[%emt 0:02:30]} h5 {[%emt 0:02:30]} 22. g5 {[%emt 0:04:30]} g6 {[%emt 0:00:30]} 23. Ne4 {[%emt 0:01:30]} O-O {[%emt 0:01:30]} 24. Rhg1 {[%emt 0:02:30]} Rfc8 {[%emt 0:00:30]} 25. c3 {[%emt 0:01:30]} b5 {[%emt 0:02:30]} 26. b3 {[%emt 0:01:30]} a5 {[%emt 0:02:30]} 27. Ka1 {[%emt 0:02:30]} Kf8 {[%emt 0:05:30]} 28. Kb1 {[%emt 0:00:30]} Ke8 {[%emt 0:01:30]} 29. Ka1 {[%emt 0:00:00]} Kd8 {[%emt 0:03:30]} 30. Kb1 {[%emt 0:01:00]} Rb7 {[%emt 0:03:30]} 31. Ka1 {[%emt 0:02:30]} Nb6 {[%emt 0:01:30]} 32. Kb1 {[%emt 0:00:30]} Kd7 {[%emt 0:01:30]} 33. Ka1 {[%emt 0:02:30]} Bd8 {[%emt 0:00:30]} 34. Be3 {[%emt 0:03:30]} a4 {[%emt 0:01:30]} 35. Kb2 {[%emt 0:01:30]} axb3 {[%emt 0:01:30]} 36. axb3 {[%emt 0:00:00]} Ra8 {[%emt 0:00:30]} 37. f4 {[%emt 0:08:06]} Rba7 {[%emt 0:07:30]} 38. fxe5 {[%emt 0:00:24]} Ra2+ {[%emt 0:00:30]} 39. Kc1 {[%emt 0:00:30]} Ra1+ {[%emt 0:09:30]} 40. Kc2 {[%emt 0:00:30]} R8a2+ {[%emt 0:02:30]} 41. Kd3 {[%emt 0:00:30]} Rxd1+ {[%emt 0:00:50]} 42. Rxd1 {[%emt 0:00:00]} dxe5 {[%emt 0:01:25]} 43. Nc5+ {[%emt 0:02:08]} Ke8 {[%emt 0:00:39]} 44. Ke4 {[%emt 0:10:17]} Re2 {[%emt 0:01:39]} 45. Rd2 {[%emt 0:01:26]} Re1 {[%emt 0:00:59]} 46. Nd3 {[%emt 0:00:34]} Rh1 {[%emt 0:00:48]} 47. Bxb6 {[%emt 0:06:18]} Rxh4+ {[%emt 0:00:48]} 48. Kxe5 {[%emt 0:00:39]} Bxb6 {[%emt 0:00:02]} 49. Re2 {[%emt 0:02:10]} Kf8 {[%emt 0:00:30]} 50. d6 {[%emt 0:00:00]} Rg4 {[%emt 0:00:23]} 51. d7 {[%emt 0:00:21]} Rxg5+ {[%emt 0:00:14]} 52. Kd6 {[%emt 0:00:09]} Rg3 {[%emt 0:00:49]} 53. Re8+ {[%emt 0:00:45]} Kg7 {[%emt 0:00:04]} 54. Ne5 {[%emt 0:00:52]} Rg1 {[%emt 0:02:05]} 55. Kc6 {[%emt 0:00:19]} Ba5 {[%emt 0:01:40]} 56. b4 {[%emt 0:00:03]} 1-0

[Event "7th Ali Ipek Memorial 2019"]
[Site "Ankara"]
[Date "2019.03.09"]
[Round "5.1"]
[White "Taspinar, Yanki"]
[Black "Guven, Oguz Kagan"]
[Result "1/2-1/2"]
[ECO "B90"]
[WhiteElo "1792"]
[BlackElo "2096"]
[Annotator "NA"]
[PlyCount "63"]
[EventDate "2019.03.06"]
[EventType "swiss"]
[EventCountry "TUR"]
[SourceTitle "playchess.com"]
[Source "ChessBase"]
[SourceQuality "1"]
[TimeControl "5400+30"]

1. e4 {[%emt 0:00:30]} c5 {[%emt 0:00:30]} 2. Nf3 {[%emt 0:00:00]} d6 {[%emt 0:00:00]} 3. d4 {[%emt 0:00:00]} cxd4 {[%emt 0:00:00]} 4. Nxd4 {[%emt 0:00:30]} Nf6 {[%emt 0:00:30]} 5. Nc3 {[%emt 0:00:30]} a6 {[%emt 0:00:30]} 6. Be3 {[%emt 0:00:00]} e5 {[%emt 0:00:00]} 7. Nb3 {[%emt 0:00:00]} Be6 {[%emt 0:00:00]} 8. f3 {[%emt 0:00:00]} h5 {[%emt 0:00:00]} 9. Qd2 {[%emt 0:02:00]} Nbd7 {[%emt 0:00:00]} 10. O-O-O {[%emt 0:00:30]} b5 {[%emt 0:00:30]} 11. Kb1 {[%emt 0:03:30]} Nb6 {[%emt 0:08:30]} 12. Qf2 {[%emt 0:10:30]} Nc4 {[%emt 0:05:30]} 13. Bxc4 {[%emt 0:01:30]} bxc4 {[%emt 0:01:30]} 14. Bb6 {[%emt 0:00:30]} Qb8 {[%emt 0:00:30]} 15. Na5 {[%emt 0:00:00]} Nd7 {[%emt 0:00:00]} 16. Na4 {[%emt 0:02:00]} Be7 {[%emt 0:10:00]} 17. Ka1 {[%emt 0:19:30]} Qc8 {[%emt 0:02:30]} 18. b3 {[%emt 0:17:30]} Rb8 {[%emt 0:02:30]} 19. g3 {[%emt 0:18:30]} O-O {[%emt 0:04:30]} 20. Rd2 {[%emt 0:01:30]} cxb3 {[%emt 0:02:30]} 21. cxb3 {[%emt 0:01:30]} Nxb6 {[%emt 0:01:30]} 22. Rc2 {[%emt 0:00:30]} Qe8 {[%emt 0:25:30]} 23. Nxb6 {[%emt 0:00:30]} Bd8 {[%emt 0:01:30]} 24. Rc6 {[%emt 0:03:26]} d5 {[%emt 0:06:30]} 25. exd5 {[%emt 0:02:25]} Bxb6 {[%emt 0:01:30]} 26. Rxb6 {[%emt 0:00:30]} Bxd5 {[%emt 0:00:00]} 27. Rxb8 {[%emt 0:01:22]} Qxb8 {[%emt 0:00:00]} 28. Nc4 {[%emt 0:02:18]} Qc7 {[%emt 0:18:06]} 29. Rd1 {[%emt 0:03:03]} Be6 {[%emt 0:03:28]} 30. Qe3 {[%emt 0:03:02]} Bxc4 {[%emt 0:01:42]} 31. Rc1 {[%emt 0:00:54]} Qd6 {[%emt 0:00:17]} 32. bxc4 {[%emt 0:02:19]} 1/2-1/2

[Event "7th Ali Ipek Memorial 2019"]
[Site "Ankara"]
[Date "2019.03.09"]
[Round "5.2"]
[White "Sekerci, Berkin"]
[Black "Buker, Muhittin"]
[Result "1-0"]
[ECO "C01"]
[WhiteElo "1711"]
[BlackElo "2009"]
[Annotator "NA"]
[PlyCount "119"]
[EventDate "2019.03.06"]
[EventType "swiss"]
[EventCountry "TUR"]
[SourceTitle "playchess.com"]
[Source "ChessBase"]
[SourceQuality "1"]
[TimeControl "5400+30"]

1. e4 {[%emt 0:00:30]} e5 {[%emt 0:00:30]} 2. Nf3 {[%emt 0:00:00]} Nf6 {[%emt 0:00:30]} 3. Nxe5 {[%emt 0:01:00]} d6 {[%emt 0:00:30]} 4. Nf3 {[%emt 0:00:30]} Nxe4 {[%emt 0:00:00]} 5. d3 {[%emt 0:01:30]} Nf6 {[%emt 0:00:00]} 6. d4 {[%emt 0:00:00]} d5 {[%emt 0:00:30]} 7. Bd3 {[%emt 0:01:00]} Bd6 {[%emt 0:01:30]} 8. O-O {[%emt 0:00:30]} O-O {[%emt 0:00:30]} 9. Bg5 {[%emt 0:00:00]} Bg4 {[%emt 0:00:30]} 10. Nbd2 {[%emt 0:00:00]} Nbd7 {[%emt 0:05:30]} 11. c3 {[%emt 0:01:30]} c5 {[%emt 0:00:30]} 12. Qc2 {[%emt 0:01:30]} Qc7 {[%emt 0:01:30]} 13. dxc5 {[%emt 0:03:30]} Bxc5 {[%emt 0:03:30]} 14. Rfe1 {[%emt 0:04:30]} Rfe8 {[%emt 0:02:30]} 15. Bf5 {[%emt 0:01:30]} Qb6 {[%emt 0:04:30]} 16. Rxe8+ {[%emt 0:08:30]} Rxe8 {[%emt 0:01:30]} 17. Bh4 {[%emt 0:01:30]} Re2 {[%emt 0:00:30]} 18. Kf1 {[%emt 0:07:30]} Bxf3 {[%emt 0:24:30]} 19. gxf3 {[%emt 0:00:30]} Bxf2 {[%emt 0:00:30]} 20. Kxe2 {[%emt 0:05:30]} Qe3+ {[%emt 0:00:30]} 21. Kf1 {[%emt 0:00:30]} Bxh4 {[%emt 0:00:30]} 22. Kg2 {[%emt 0:13:30]} Qf2+ {[%emt 0:01:30]} 23. Kh1 {[%emt 0:00:30]} Bg5 {[%emt 0:00:30]} 24. Nf1 {[%emt 0:05:30]} Qxf3+ {[%emt 0:02:30]} 25. Kg1 {[%emt 0:01:30]} Be3+ {[%emt 0:09:30]} 26. Nxe3 {[%emt 0:00:30]} Qxe3+ {[%emt 0:00:30]} 27. Qf2 {[%emt 0:00:30]} Qg5+ {[%emt 0:00:00]} 28. Kh1 {[%emt 0:00:00]} Ne4 {[%emt 0:06:00]} 29. Bxe4 {[%emt 0:03:00]} dxe4 {[%emt 0:00:30]} 30. Rd1 {[%emt 0:06:30]} Nf8 {[%emt 0:09:30]} 31. Rf1 {[%emt 0:04:30]} Qd5 {[%emt 0:03:30]} 32. b3 {[%emt 0:03:30]} e3+ {[%emt 0:04:15]} 33. Qg2 {[%emt 0:00:30]} Qe5 {[%emt 0:00:00]} 34. c4 {[%emt 0:00:30]} Ne6 {[%emt 0:01:40]} 35. Qxb7 {[%emt 0:01:30]} f5 {[%emt 0:06:23]} 36. Qd5 {[%emt 0:08:32]} Qxd5+ {[%emt 0:00:30]} 37. cxd5 {[%emt 0:00:30]} Nd4 {[%emt 0:00:00]} 38. Kg2 {[%emt 0:00:39]} g5 {[%emt 0:02:06]} 39. Rd1 {[%emt 0:04:02]} e2 {[%emt 0:01:15]} 40. Re1 {[%emt 0:00:31]} f4 {[%emt 0:00:58]} 41. Kf2 {[%emt 0:00:12]} f3 {[%emt 0:02:57]} 42. Rc1 {[%emt 0:00:53]} Kf8 {[%emt 0:01:00]} 43. Rc4 {[%emt 0:00:39]} Nf5 {[%emt 0:00:51]} 44. Re4 {[%emt 0:00:08]} Nd6 {[%emt 0:02:05]} 45. Re6 {[%emt 0:02:02]} Nb5 {[%emt 0:00:48]} 46. Rf6+ {[%emt 0:00:25]} Ke7 {[%emt 0:00:42]} 47. Rxf3 {[%emt 0:00:10]} Kd6 {[%emt 0:00:21]} 48. Rd3 {[%emt 0:01:06]} Nc7 {[%emt 0:00:18]} 49. Kxe2 {[%emt 0:00:15]} Nxd5 {[%emt 0:00:07]} 50. Kf3 {[%emt 0:00:00]} Ke5 {[%emt 0:00:17]} 51. Rxd5+ {[%emt 0:04:54]} Kxd5 {[%emt 0:00:30]} 52. Kg4 {[%emt 0:00:30]} Kd4 {[%emt 0:00:30]} 53. Kxg5 {[%emt 0:00:30]} Kc3 {[%emt 0:00:30]} 54. Kh6 {[%emt 0:00:30]} Kb2 {[%emt 0:00:30]} 55. Kxh7 {[%emt 0:00:30]} Kxa2 {[%emt 0:00:30]} 56. Kg6 {[%emt 0:00:30]} Kxb3 {[%emt 0:00:30]} 57. h4 {[%emt 0:00:30]} a5 {[%emt 0:00:30]} 58. h5 {[%emt 0:00:30]} a4 {[%emt 0:00:30]} 59. h6 {[%emt 0:00:00]} a3 {[%emt 0:00:00]} 60. h7 {[%emt 0:00:00]} 1-0

[Event "7th Ali Ipek Memorial 2019"]
[Site "Ankara"]
[Date "2019.03.09"]
[Round "5.3"]
[White "Alkan, Omer Tarik"]
[Black "Karadag, Eflatun Cem"]
[Result "1-0"]
[ECO "C56"]
[WhiteElo "1717"]
[BlackElo "1879"]
[Annotator "NA"]
[PlyCount "69"]
[EventDate "2019.03.06"]
[EventType "swiss"]
[EventCountry "TUR"]
[SourceTitle "playchess.com"]
[Source "ChessBase"]
[SourceQuality "1"]
[TimeControl "5400+30"]

1. e4 {[%emt 0:00:30]} e5 {[%emt 0:00:30]} 2. Nf3 {[%emt 0:00:30]} Nc6 {[%emt 0:00:30]} 3. d4 {[%emt 0:00:00]} exd4 {[%emt 0:00:30]} 4. Bc4 {[%emt 0:00:00]} Nf6 {[%emt 0:01:30]} 5. e5 {[%emt 0:00:00]} d5 {[%emt 0:00:30]} 6. Bb5 {[%emt 0:00:00]} Ne4 {[%emt 0:00:30]} 7. Nxd4 {[%emt 0:00:30]} Bd7 {[%emt 0:00:30]} 8. Bxc6 {[%emt 0:00:30]} bxc6 {[%emt 0:00:30]} 9. O-O {[%emt 0:00:00]} Bc5 {[%emt 0:02:30]} 10. f3 {[%emt 0:00:00]} Ng5 {[%emt 0:01:30]} 11. Be3 {[%emt 0:00:00]} O-O {[%emt 0:03:30]} 12. f4 {[%emt 0:00:00]} Ne4 {[%emt 0:00:30]} 13. Nd2 {[%emt 0:00:30]} Nxd2 {[%emt 0:01:30]} 14. Qxd2 {[%emt 0:00:00]} f6 {[%emt 0:06:30]} 15. Nf3 {[%emt 0:05:00]} Bb6 {[%emt 0:06:30]} 16. Rae1 {[%emt 0:00:00]} Re8 {[%emt 0:05:30]} 17. a4 {[%emt 0:11:00]} Rb8 {[%emt 0:00:30]} 18. b3 {[%emt 0:02:30]} Bg4 {[%emt 0:15:30]} 19. Bxb6 {[%emt 0:01:30]} cxb6 {[%emt 0:03:30]} 20. Nd4 {[%emt 0:00:30]} Qd7 {[%emt 0:03:30]} 21. h3 {[%emt 0:00:30]} Bf5 {[%emt 0:02:30]} 22. g4 {[%emt 0:01:30]} Be4 {[%emt 0:00:30]} 23. exf6 {[%emt 0:07:30]} c5 {[%emt 0:01:30]} 24. Ne2 {[%emt 0:02:30]} d4 {[%emt 0:02:30]} 25. Ng3 {[%emt 0:01:30]} Bb7 {[%emt 0:02:30]} 26. Nf5 {[%emt 0:04:30]} gxf6 {[%emt 0:02:30]} 27. Qf2 {[%emt 0:04:30]} Qd5 {[%emt 0:02:30]} 28. Kh2 {[%emt 0:00:30]} Kf8 {[%emt 0:07:30]} 29. Rg1 {[%emt 0:06:30]} Rxe1 {[%emt 0:03:30]} 30. Rxe1 {[%emt 0:00:30]} Qc6 {[%emt 0:00:30]} 31. Qe2 {[%emt 0:00:30]} Qc7 {[%emt 0:01:30]} 32. Kg3 {[%emt 0:01:30]} Bc6 {[%emt 0:00:30]} 33. Qe6 {[%emt 0:00:30]} Be8 {[%emt 0:04:18]} 34. Qxf6+ {[%emt 0:00:30]} Qf7 {[%emt 0:00:56]} 35. Qd6+ {[%emt 0:00:30]} 1-0

[Event "7th Ali Ipek Memorial 2019"]
[Site "Ankara"]
[Date "2019.03.09"]
[Round "5.4"]
[White "Ercan, Mehmet Fahri"]
[Black "Coban, Eren Cinar"]
[Result "1-0"]
[ECO "A34"]
[WhiteElo "1934"]
[BlackElo "1693"]
[Annotator "NA"]
[PlyCount "81"]
[EventDate "2019.03.06"]
[EventType "swiss"]
[EventCountry "TUR"]
[SourceTitle "playchess.com"]
[Source "ChessBase"]
[SourceQuality "1"]
[TimeControl "5400+30"]

1. c4 {[%emt 0:03:30]} b6 {[%emt 0:00:30]} 2. e4 {[%emt 0:00:30]} Bb7 {[%emt 0:00:30]} 3. Nc3 {[%emt 0:01:30]} c5 {[%emt 0:03:30]} 4. f4 {[%emt 0:03:30]} d6 {[%emt 0:01:30]} 5. Nf3 {[%emt 0:00:30]} g6 {[%emt 0:02:30]} 6. d4 {[%emt 0:04:30]} Bg7 {[%emt 0:02:30]} 7. d5 {[%emt 0:00:30]} Nd7 {[%emt 0:00:30]} 8. Bd3 {[%emt 0:02:30]} a6 {[%emt 0:02:30]} 9. O-O {[%emt 0:01:30]} Qc7 {[%emt 0:01:30]} 10. Qe2 {[%emt 0:01:30]} O-O-O {[%emt 0:07:30]} 11. Bd2 {[%emt 0:04:30]} e5 {[%emt 0:03:30]} 12. dxe6 {[%emt 0:00:30]} fxe6 {[%emt 0:00:30]} 13. Ng5 {[%emt 0:00:30]} Nf8 {[%emt 0:00:30]} 14. f5 {[%emt 0:05:30]} gxf5 {[%emt 0:16:30]} 15. exf5 {[%emt 0:00:30]} Bd4+ {[%emt 0:01:30]} 16. Kh1 {[%emt 0:03:30]} e5 {[%emt 0:12:30]} 17. f6 {[%emt 0:22:30]} h5 {[%emt 0:09:30]} 18. Nd5 {[%emt 0:12:30]} Bxd5 {[%emt 0:02:30]} 19. cxd5 {[%emt 0:00:00]} e4 {[%emt 0:04:30]} 20. Bxa6+ {[%emt 0:01:00]} Kb8 {[%emt 0:00:30]} 21. Nxe4 {[%emt 0:05:30]} Nh6 {[%emt 0:01:30]} 22. Bc3 {[%emt 0:02:30]} Bxc3 {[%emt 0:03:30]} 23. bxc3 {[%emt 0:00:30]} Re8 {[%emt 0:00:30]} 24. Qd3 {[%emt 0:02:30]} Ng6 {[%emt 0:01:57]} 25. Ng5 {[%emt 0:05:02]} Ne5 {[%emt 0:01:40]} 26. Qb5 {[%emt 0:01:49]} Ka7 {[%emt 0:03:44]} 27. Qa4 {[%emt 0:01:10]} Ra8 {[%emt 0:02:24]} 28. Bb5+ {[%emt 0:00:52]} Kb8 {[%emt 0:01:27]} 29. Qe4 {[%emt 0:00:10]} Ra5 {[%emt 0:02:15]} 30. a4 {[%emt 0:00:12]} Rg8 {[%emt 0:01:27]} 31. Ne6 {[%emt 0:02:17]} Qf7 {[%emt 0:00:42]} 32. Rae1 {[%emt 0:02:11]} Nhg4 {[%emt 0:02:52]} 33. Qf4 {[%emt 0:00:36]} Rg6 {[%emt 0:02:40]} 34. Nd8 {[%emt 0:06:46]} Qf8 {[%emt 0:01:47]} 35. Nc6+ {[%emt 0:02:48]} Nxc6 {[%emt 0:00:30]} 36. Bxc6 {[%emt 0:00:30]} Rxf6 {[%emt 0:00:30]} 37. Qc1 {[%emt 0:00:30]} Rxf1+ {[%emt 0:00:30]} 38. Rxf1 {[%emt 0:00:30]} Qg7 {[%emt 0:00:30]} 39. Qf4 {[%emt 0:00:30]} Ra7 {[%emt 0:00:30]} 40. Qxd6+ {[%emt 0:00:30]} Rc7 {[%emt 0:00:30]} 41. Rf8+ {[%emt 0:00:00]} 1-0

[Event "7th Ali Ipek Memorial 2019"]
[Site "Ankara"]
[Date "2019.03.09"]
[Round "5.5"]
[White "Kizilkus, Akin"]
[Black "Turkmen, Ataberk"]
[Result "1-0"]
[ECO "E44"]
[WhiteElo "2004"]
[BlackElo "1868"]
[Annotator "NA"]
[PlyCount "55"]
[EventDate "2019.03.06"]
[EventType "swiss"]
[EventCountry "TUR"]
[SourceTitle "playchess.com"]
[Source "ChessBase"]
[SourceQuality "1"]
[TimeControl "5400+30"]

1. d4 {[%emt 0:00:30]} Nf6 {[%emt 0:00:30]} 2. c4 {[%emt 0:00:00]} e6 {[%emt 0:00:30]} 3. Nc3 {[%emt 0:00:00]} Bb4 {[%emt 0:00:30]} 4. e3 {[%emt 0:00:00]} O-O {[%emt 0:00:30]} 5. Nge2 {[%emt 0:00:00]} b6 {[%emt 0:00:30]} 6. a3 {[%emt 0:00:30]} Bxc3+ {[%emt 0:00:30]} 7. Nxc3 {[%emt 0:00:30]} Bb7 {[%emt 0:00:00]} 8. Bd3 {[%emt 0:00:30]} d6 {[%emt 0:00:00]} 9. O-O {[%emt 0:00:30]} Nbd7 {[%emt 0:18:30]} 10. f4 {[%emt 0:02:30]} d5 {[%emt 0:01:30]} 11. b3 {[%emt 0:15:30]} Ne4 {[%emt 0:02:30]} 12. Nxe4 {[%emt 0:01:30]} dxe4 {[%emt 0:00:30]} 13. Be2 {[%emt 0:00:00]} f5 {[%emt 0:03:30]} 14. Bb2 {[%emt 0:00:00]} Qe7 {[%emt 0:00:30]} 15. b4 {[%emt 0:06:30]} Rfd8 {[%emt 0:11:30]} 16. g4 {[%emt 0:08:30]} Qh4 {[%emt 0:07:30]} 17. Kh1 {[%emt 0:03:30]} Qh3 {[%emt 0:04:30]} 18. Rg1 {[%emt 0:20:30]} Qxe3 {[%emt 0:04:30]} 19. gxf5 {[%emt 0:01:30]} exf5 {[%emt 0:01:30]} 20. d5 {[%emt 0:01:30]} g6 {[%emt 0:00:30]} 21. Rg3 {[%emt 0:00:30]} Qxf4 {[%emt 0:04:30]} 22. Qd4 {[%emt 0:00:30]} Qh6 {[%emt 0:02:30]} 23. Rh3 {[%emt 0:00:30]} Qf8 {[%emt 0:00:30]} 24. Qh8+ {[%emt 0:00:30]} Kf7 {[%emt 0:00:30]} 25. Qxh7+ {[%emt 0:00:00]} Ke8 {[%emt 0:00:00]} 26. Qxg6+ {[%emt 0:00:00]} Qf7 {[%emt 0:00:00]} 27. Qg5 {[%emt 0:01:30]} Nf8 {[%emt 0:00:30]} 28. Bh5 {[%emt 0:00:00]} 1-0

[Event "7th Ali Ipek Memorial 2019"]
[Site "Ankara"]
[Date "2019.03.09"]
[Round "5.6"]
[White "Severcan, Sedat Sabri"]
[Black "Yenice, Yusuf Erkan"]
[Result "1/2-1/2"]
[ECO "D43"]
[WhiteElo "1927"]
[BlackElo "1485"]
[Annotator "NA RC"]
[PlyCount "187"]
[EventDate "2019.03.06"]
[EventType "swiss"]
[EventCountry "TUR"]
[SourceTitle "playchess.com"]
[Source "ChessBase"]
[SourceQuality "1"]
[TimeControl "5400+30"]

1. c4 {[%emt 0:00:30]} e6 {[%emt 0:13:30]} 2. Nc3 {[%emt 0:00:00]} d5 {[%emt 0:01:30]} 3. d4 {[%emt 0:01:00]} c6 {[%emt 0:00:00]} 4. Nf3 {[%emt 0:00:30]} Nf6 {[%emt 0:00:00]} 5. Bg5 {[%emt 0:00:30]} h6 {[%emt 0:00:30]} 6. Bxf6 {[%emt 0:00:30]} Qxf6 {[%emt 0:00:30]} 7. a3 {[%emt 0:00:30]} Nd7 {[%emt 0:10:30]} 8. e3 {[%emt 0:01:30]} g6 {[%emt 0:00:30]} 9. Bd3 {[%emt 0:03:30] D43: Semi-Slav: 5 Bg5 h6} (9. e4 dxc4 10. e5 Qd8 11. Bxc4 Bg7 12. Qe2 O-O 13. Rd1 Qc7 14. Kf1 a6 15. h4 Rd8 16. h5 g5 17. Nxg5 Nxe5 18. Nxe6 Bxe6 19. Bxe6 fxe6 20. dxe5 Qxe5 {1-0 (32) Aronian,L (2786)-Tkachiev,V (2642) Moscow 2009}) 9... Bg7 {[%emt 0:01:30]} 10. O-O {[%emt 0:03:30]} O-O {[%emt 0:00:30]} 11. Rc1 {[%emt 0:00:30]} dxc4 {[%emt 0:02:30]} 12. Ne4 $146 {[%emt 0:01:30]} ({Predecessor:} 12. Bxc4 e5 13. d5 Nb6 14. Ne4 Qe7 15. d6 Qd8 16. Ba2 {1-0 (45) Fakhretdinov,R (2400)-Sitdikov,R Ufa 1999}) 12... Qe7 {[%emt 0:02:30]} 13. Bxc4 {[%emt 0:03:30]} e5 {[%emt 0:00:30]} 14. Re1 {[%emt 0:01:30]} Nb6 {[%emt 0:18:30]} 15. Ba2 {[%emt 0:09:30]} Bg4 {[%emt 0:02:30]} 16. h3 {[%emt 0:00:30]} Bxf3 {[%emt 0:03:30]} 17. Qxf3 {[%emt 0:00:30]} Rad8 {[%emt 0:02:30]} 18. dxe5 {[%emt 0:04:30]} Bxe5 {[%emt 0:05:30]} 19. Rc2 {[%emt 0:06:30]} Nd5 {[%emt 0:02:30]} 20. g3 {[%emt 0:07:30]} Kg7 {[%emt 0:01:30]} 21. Nd2 {[%emt 0:03:30]} Qf6 {[%emt 0:03:30]} 22. Qxf6+ {[%emt 0:00:30]} Nxf6 {[%emt 0:00:00]} 23. f4 {[%emt 0:00:30]} Bc7 {[%emt 0:01:00]} 24. e4 {[%emt 0:00:30]} Rd3 {[%emt 0:04:30]} 25. Nf1 {[%emt 0:02:30]} Nh5 {[%emt 0:01:30]} 26. Bc4 {[%emt 0:02:30]} Rd4 {[%emt 0:01:30]} 27. e5 {[%emt 0:02:30]} Rfd8 {[%emt 0:07:18]} 28. Kg2 {[%emt 0:02:30]} Kf8 {[%emt 0:02:20]} 29. Ree2 {[%emt 0:02:30]} Ng7 {[%emt 0:00:34]} 30. Ne3 {[%emt 0:00:30]} h5 {[%emt 0:01:44]} 31. h4 {[%emt 0:00:00]} Ke7 {[%emt 0:00:06]} 32. a4 {[%emt 0:02:00]} Ba5 {[%emt 0:00:36]} 33. Nf1 {[%emt 0:05:30]} a6 {[%emt 0:00:16]} 34. Nh2 {[%emt 0:01:30]} Rd2 {[%emt 0:01:33]} 35. Nf3 {[%emt 0:01:30]} Rxe2+ {[%emt 0:01:00]} 36. Rxe2 {[%emt 0:01:30]} b5 {[%emt 0:01:10]} 37. axb5 {[%emt 0:00:30]} axb5 {[%emt 0:00:56]} 38. Ba2 {[%emt 0:00:30]} c5 {[%emt 0:01:20]} 39. Ng5 {[%emt 0:01:30]} c4 {[%emt 0:01:03]} 40. Ne4 {[%emt 0:00:30]} Nf5 {[%emt 0:01:02]} 41. Bb1 {[%emt 0:05:30]} Rd1 {[%emt 0:00:56]} 42. Nc3 {[%emt 0:08:28]} Bxc3 {[%emt 0:00:54]} 43. Bxf5 {[%emt 0:00:52]} Rd2 {[%emt 0:00:45]} 44. Rxd2 {[%emt 0:01:23]} Bxd2 {[%emt 0:00:02]} 45. Bc8 {[%emt 0:02:11]} b4 {[%emt 0:02:11]} 46. Ba6 {[%emt 0:00:03]} c3 {[%emt 0:00:27]} 47. bxc3 {[%emt 0:00:36]} bxc3 {[%emt 0:00:27]} 48. Bd3 {[%emt 0:00:00]} Kf8 {[%emt 0:01:23]} 49. Kf3 {[%emt 0:00:24]} Kg7 {[%emt 0:00:19]} 50. g4 {[%emt 0:01:18]} Be1 {[%emt 0:00:44]} 51. gxh5 {[%emt 0:00:55]} gxh5 {[%emt 0:00:05]} 52. Ke4 {[%emt 0:02:42]} Bxh4 {[%emt 0:00:14]} 53. f5 {[%emt 0:01:44]} Be1 {[%emt 0:00:30]} 54. f6+ {[%emt 0:00:30]} Kf8 {[%emt 0:00:30]} 55. Kf5 {[%emt 0:00:18]} h4 {[%emt 0:00:39]} 56. Kg4 {[%emt 0:00:26]} Bg3 {[%emt 0:00:13]} 57. Bc2 {[%emt 0:02:14]} Bxe5 {[%emt 0:00:30]} 58. Kxh4 {[%emt 0:00:00]} Bxf6+ {[%emt 0:00:26]} 59. Kg4 {[%emt 0:00:00]} Ke7 {[%emt 0:00:44]} 60. Kf5 {[%emt 0:00:03]} Bg7 {[%emt 0:00:32]} 61. Bb3 {[%emt 0:00:22]} Bh6 {[%emt 0:01:16]} 62. Bc2 {[%emt 0:00:20]} f6 {[%emt 0:00:08]} 63. Bb3 {[%emt 0:00:38]} Bg5 {[%emt 0:00:30]} 64. Bc2 {[%emt 0:00:30]} Kd6 {[%emt 0:00:00]} 65. Ke4 {[%emt 0:00:00]} Kc5 {[%emt 0:00:06]} 66. Kd3 {[%emt 0:00:00]} Kb4 {[%emt 0:00:57]} 67. Kd4 {[%emt 0:00:00]} Bd2 {[%emt 0:00:00]} 68. Kd3 {[%emt 0:06:59]} Ka3 $2 {[%emt 0:00:05]} (68... f5 $19 69. Bd1 f4) 69. Ke2 {[%emt 0:01:07]} Kb4 {[%emt 0:01:45]} 70. Bd3 {[%emt 0:02:28]} Kc5 {[%emt 0:00:12]} 71. Kf3 $1 $11 {[%emt 0:00:24] was the only way to keep the balance.} Kd4 {[%emt 0:00:06]} 72. Bc2 {[%emt 0:00:25]} Ke5 {[%emt 0:01:17]} 73. Kg4 {[%emt 0:00:09]} Be1 {[%emt 0:00:37]} 74. Bg6 {[%emt 0:01:06]} Kd4 {[%emt 0:01:08]} 75. Kf3 {[%emt 0:00:04]} Bd2 {[%emt 0:00:31]} (75... Kc4 $17 76. Ke2 Bd2) 76. Bc2 $1 {[%emt 0:00:17]} Kc5 {[%emt 0:00:31]} (76... Bh6 $17 77. Ke2 Kc4) 77. Ke4 {[%emt 0:00:51]} Kc4 {[%emt 0:00:16]} 78. Kf3 {[%emt 0:00:22]} Kd5 {[%emt 0:01:11]} 79. Bf5 {[%emt 0:00:35]} Ke5 {[%emt 0:00:44]} 80. Kg4 {[%emt 0:00:12]} Kd6 {[%emt 0:00:43]} 81. Bc2 {[%emt 0:00:38]} Kd5 {[%emt 0:00:49]} 82. Kf3 $17 {[%emt 0:00:39]} Bh6 {[%emt 0:00:26]} 83. Bf5 {[%emt 0:00:06]} Kd6 {[%emt 0:01:16]} 84. Bc2 {[%emt 0:00:14]} Bg5 {[%emt 0:00:17]} 85. Bf5 {[%emt 0:00:29]} Kd5 {[%emt 0:00:32]} 86. Bc2 {[%emt 0:00:16]} Ke6 {[%emt 0:00:33]} 87. Kg4 {[%emt 0:00:07]} Ke5 {[%emt 0:00:09]} 88. Bf5 {[%emt 0:00:35]} Bh6 {[%emt 0:00:57]} 89. Bc2 {[%emt 0:00:06]} Kd4 {[%emt 0:00:30]} 90. Kf3 {[%emt 0:00:06]} Kc4 {[%emt 0:00:29]} 91. Ke2 {[%emt 0:00:30]} Kb4 {[%emt 0:00:00]} 92. Bf5 {[%emt 0:00:49]} Ka3 {[%emt 0:00:22]} 93. Kd1 {[%emt 0:00:30]} Kb2 {[%emt 0:00:30]} 94. Bc2 {[%emt 0:00:00]} 1/2-1/2